fUSD/lending_fUSD_20240212
["ID","MTS","AMOUNT","RATE_DAILY","PERIOD"]
[313829309,1707746837223,500.0,0.00022,2]
[313829310,1707746838236,500.0,0.00022,2]
[313829311,1707746838798,500.0,0.00022,2]
[313829312,1707746839501,500.0,0.00022,2]
[313829313,1707746840298,500.0,0.00022,2]
[313829314,1707746841135,500.0,0.00022,2]
[313829315,1707746841862,500.0,0.00022,2]
[313829316,1707746842640,500.0,0.00022,2]
[313829317,1707746843404,500.0,0.00022,2]
[313829318,1707746844257,500.0,0.00022,2]
[313829319,1707746845039,500.0,0.00022,2]
[313829320,1707746846061,500.0,0.00022,2]
[313829321,1707746846845,500.0,0.00022,2]
[313829322,1707746847630,500.0,0.00022,2]
[313829323,1707746848789,500.0,0.00022,2]
[313829324,1707746849493,500.0,0.00022,2]
[313829325,1707746850250,500.0,0.00022,2]
[313829326,1707746850985,500.0,0.00022,2]
[313829327,1707746852120,500.0,0.00022,2]
[313829328,1707746852881,500.0,0.00022,2]
[313829329,1707746853657,316.0,0.00022,2]
[313829330,1707746853681,184.0,0.00022,2]
[313829331,1707746854411,500.0,0.00022,2]
[313829332,1707746855169,500.0,0.00022,2]
[313829333,1707746855928,500.0,0.00022,2]
[313829334,1707746856685,500.0,0.00022,2]
[313829335,1707746857447,500.0,0.00022,2]
[313829336,1707746858213,500.0,0.00022,2]
[313829337,1707746859049,500.0,0.00022,2]
[313829338,1707746859720,500.0,0.00022,2]
[313829339,1707746860489,500.0,0.00022,2]
[313829340,1707746861245,500.0,0.00022,2]
[313829341,1707746861998,500.0,0.00022,2]
[313829342,1707746862764,500.0,0.00022,2]
[313829343,1707746863521,500.0,0.00022,2]
[313829344,1707746864453,500.0,0.00022,2]
[313829345,1707746865217,500.0,0.00022,2]
[313829346,1707746865981,500.0,0.00022,2]
[313829347,1707746866726,500.0,0.00022,2]
[313829348,1707746867484,500.0,0.00022,2]
[313829349,1707746868243,500.0,0.00022,2]
[313829350,1707746869456,500.0,0.00022,2]
[313829351,1707746869832,443.64,0.00022,2]
[313829352,1707746882908,353158.2,0.000224,3]
[313829353,1707746963445,174.85,0.00021966,2]
[313829390,1707747031915,-150.0,0.00022495,2]
[313829391,1707747031925,-165.45,0.00022625,2]
[313829392,1707747031936,-353.0,0.00022696,2]
[313829393,1707747031946,-500.0,0.000227,2]
[313829394,1707747031955,-544.12262717,0.00022769,2]
[313829395,1707747031966,-898.38723224,0.00022769,2]
[313829396,1707747032025,-314.19872509,0.00022769,2]
[313829397,1707747032037,-1017.50887766,0.00022769,2]
[313829398,1707747032135,-2283.68928288,0.00022769,2]
[313829399,1707747032145,-352.00681665,0.0002277,2]
[313829400,1707747032194,-517.74537406,0.0002277,2]
[313829401,1707747032205,-514.09738186,0.0002277,2]
[313829407,1707747038666,-2731.02565775,0.0002277,2]
[313829408,1707747038761,-421.12476968,0.0002277,2]
[313829409,1707747038771,-24822.60578448,0.00022797,2]
[313829416,1707747040549,-741.78690037,0.00022797,2]
[313829417,1707747041508,-10398.27131369,0.00022797,2]
[313829420,1707747041521,-995.74000003,0.00022797,2]
[313829440,1707747043121,-5998.35973722,0.00022797,2]
[313829441,1707747043134,-2398.57494127,0.00022797,2]
[313829442,1707747043178,-10100.71925049,0.00022797,2]
[313829443,1707747043189,-403.21425159,0.00022889,2]
[313829444,1707747043198,-150.99,0.00022896,2]
[313829445,1707747043207,-150.0,0.00022899,2]
[313829446,1707747043216,-1792.91705272,0.000229,2]
[313829447,1707747043226,-447.96301477,0.000229,6]
[313829448,1707747043235,-259.78974636,0.000229,2]
[313829450,1707747043244,-161.25218328,0.000229,2]
[313829452,1707747043253,-2205.50901394,0.000229,2]
[313829454,1707747043262,-500.0,0.00022929,2]
[313829456,1707747043272,-500.0,0.00022929,2]
[313829458,1707747043281,-500.0,0.00022929,2]
[313829459,1707747043291,-500.0,0.00022929,2]
[313829462,1707747043300,-500.0,0.00022929,2]
[313829463,1707747043310,-500.0,0.00022929,2]
[313829465,1707747043319,-500.0,0.00022929,2]
[313829467,1707747043328,-500.0,0.00022929,2]
[313829469,1707747043338,-500.0,0.00022929,2]
[313829471,1707747043348,-500.0,0.00022929,2]
[313829473,1707747043358,-500.0,0.00022929,2]
[313829475,1707747043368,-500.0,0.00022929,2]
[313829477,1707747043378,-500.0,0.00022929,2]
[313829479,1707747043387,-500.0,0.00022929,2]
[313829481,1707747043397,-512.6,0.00022929,2]
[313829483,1707747043408,-500.0,0.00022929,2]
[313829485,1707747043417,-500.0,0.00022929,2]
[313829487,1707747043427,-500.0,0.00022929,2]
[313829488,1707747043436,-500.0,0.00022929,2]
[313829489,1707747043445,-500.0,0.00022929,2]
[313829490,1707747043455,-500.0,0.00022929,2]
[313829491,1707747043464,-500.0,0.00022929,2]
[313829492,1707747043473,-500.0,0.00022929,2]
[313829493,1707747043483,-500.0,0.00022929,2]
[313829494,1707747043492,-150.0,0.00022929,2]
[313829495,1707747043501,-500.0,0.00022929,2]
[313829496,1707747043511,-1269.46,0.00022929,2]
[313829497,1707747043519,-500.0,0.00022929,2]
[313829498,1707747043529,-500.0,0.00022929,2]
[313829499,1707747043538,-500.0,0.00022929,2]
[313829500,1707747043548,-500.0,0.00022929,2]
[313829501,1707747043556,-500.0,0.00022929,2]
[313829502,1707747043565,-500.0,0.00022929,2]
[313829503,1707747043575,-465.58960609,0.00022929,2]
[313829504,1707747043585,-504.84264657,0.00022929,2]
[313829505,1707747043595,-500.0,0.00022929,2]
[313829506,1707747043604,-500.0,0.00022929,2]
[313829507,1707747043614,-500.0,0.00022929,2]
[313829508,1707747043623,-500.0,0.00022929,2]
[313829509,1707747043633,-500.0,0.00022929,2]
[313829510,1707747043643,-500.0,0.00022929,2]
[313829511,1707747043652,-531.58,0.00022929,2]
[313829512,1707747043663,-3768.12,0.00022929,2]
[313829513,1707747043674,-500.0,0.00022929,2]
[313829514,1707747043683,-387.90135178,0.00022929,2]
[313829515,1707747043693,-590.26089424,0.00022929,2]
[313829516,1707747043727,-659.53362065,0.00022929,2]
[313829520,1707747045901,-156.07146257,0.00022697,2]
[313829521,1707747045912,-365.86691889,0.00022796,2]
[313829522,1707747045957,-1247.65955455,0.00022796,2]
[313829523,1707747046013,-1982.85839921,0.00022796,2]
[313829524,1707747046024,-156.02977275,0.00022796,2]
[313829525,1707747046034,-1102.67548511,0.00022929,2]
[313829526,1707747046043,-588.44,0.00022929,2]
[313829527,1707747046053,-500.0,0.00022929,2]
[313829528,1707747046062,-500.0,0.00022929,2]
[313829529,1707747046071,-2125.62,0.00022929,2]
[313829530,1707747046080,-500.0,0.00022929,2]
[313829531,1707747046090,-500.0,0.00022929,2]
[313829532,1707747046099,-1423.1,0.00022929,2]
[313829533,1707747046108,-915.7,0.00022929,2]
[313829534,1707747046118,-11882.43,0.00022929,2]
[313829535,1707747046127,-500.0,0.00022929,2]
[313829536,1707747046137,-500.0,0.00022929,2]
[313829537,1707747046146,-883.4,0.00022929,2]
[313829538,1707747046155,-500.0,0.00022929,2]
[313829539,1707747046165,-3286.91,0.00022929,2]
[313829540,1707747046175,-214.00999631,0.00022929,2]
[313829541,1707747046184,-524.57,0.00022929,2]
[313829542,1707747046193,-616.99,0.00022929,2]
[313829543,1707747046202,-500.0,0.00022929,2]
[313829544,1707747046211,-500.0,0.00022929,2]
[313829545,1707747046221,-500.0,0.00022929,2]
[313829546,1707747046230,-500.0,0.00022929,2]
[313829547,1707747046239,-5093.25,0.00022929,2]
[313829548,1707747046248,-500.0,0.00022929,2]
[313829549,1707747046258,-500.0,0.00022929,2]
[313829550,1707747046267,-500.0,0.00022929,2]
[313829551,1707747046277,-953.4,0.00022929,2]
[313829552,1707747046287,-500.0,0.00022929,2]
[313829553,1707747046296,-1488.08,0.00022929,2]
[313829555,1707747046305,-500.0,0.00022929,2]
[313829557,1707747046315,-634.3,0.00022929,2]
[313829559,1707747046324,-500.0,0.00022929,2]
[313829561,1707747046333,-703.63,0.00022929,2]
[313829563,1707747046342,-2204.71,0.00022929,2]
[313829565,1707747046351,-500.0,0.00022929,2]
[313829567,1707747046361,-1096.8,0.00022929,2]
[313829569,1707747046370,-187.41205165,0.00022929,2]
[313829571,1707747046380,-1770.26,0.00022929,2]
[313829573,1707747046389,-500.0,0.00022929,2]
[313829575,1707747046398,-500.0,0.00022929,2]
[313829577,1707747046407,-500.0,0.00022929,2]
[313829579,1707747046417,-4683.7,0.00022929,2]
[313829581,1707747046427,-1067.71,0.00022929,2]
[313829583,1707747046436,-773.54,0.00022929,2]
[313829585,1707747046446,-500.0,0.00022929,2]
[313829587,1707747046455,-500.0,0.00022929,2]
[313829589,1707747046464,-1169.59,0.00022929,2]
[313829591,1707747046473,-500.0,0.00022929,2]
[313829593,1707747046482,-577.25,0.00022929,2]
[313829595,1707747046491,-500.0,0.00022929,2]
[313829597,1707747046500,-510.13,0.00022929,2]
[313829599,1707747046509,-500.0,0.00022929,2]
[313829601,1707747046518,-500.0,0.00022929,2]
[313829603,1707747046527,-500.0,0.00022929,2]
[313829605,1707747046537,-1434.42,0.00022929,2]
[313829606,1707747046546,-500.0,0.00022929,2]
[313829608,1707747046555,-861.36,0.00022929,2]
[313829609,1707747046564,-7802.52,0.00022929,2]
[313829611,1707747046574,-1104.59,0.00022929,2]
[313829613,1707747046583,-500.0,0.00022929,2]
[313829615,1707747046593,-1582.27,0.00022929,2]
[313829617,1707747046602,-500.0,0.00022929,2]
[313829619,1707747046611,-500.0,0.00022929,2]
[313829621,1707747046620,-546.88,0.00022929,2]
[313829623,1707747046630,-538.55,0.00022929,2]
[313829625,1707747046639,-549.44,0.00022929,2]
[313829626,1707747046649,-500.0,0.00022929,2]
[313829627,1707747046658,-500.0,0.00022929,2]
[313829628,1707747046670,-500.0,0.00022929,2]
[313829629,1707747046679,-4780.08,0.00022929,2]
[313829630,1707747046688,-500.0,0.00022929,2]
[313829631,1707747046697,-500.0,0.00022929,2]
[313829632,1707747046706,-500.0,0.00022929,2]
[313829633,1707747046716,-500.0,0.00022929,2]
[313829634,1707747046725,-561.27,0.00022929,2]
[313829635,1707747046734,-500.0,0.00022929,2]
[313829636,1707747046743,-673.58,0.00022929,2]
[313829637,1707747046752,-1189.61,0.00022929,2]
[313829638,1707747046761,-500.0,0.00022929,2]
[313829639,1707747046770,-526.2789764,0.00022929,2]
[313829640,1707747046779,-500.0,0.00022929,2]
[313829641,1707747046790,-500.0,0.00022929,2]
[313829642,1707747046799,-1471.37,0.00022929,2]
[313829643,1707747046808,-1355.33,0.00022929,2]
[313829644,1707747046817,-1452.63,0.00022929,2]
[313829645,1707747046827,-500.0,0.00022929,2]
[313829646,1707747046836,-368.48368354,0.00022929,2]
[313829647,1707747046845,-953.36242685,0.00022929,2]
[313829648,1707747047201,-393.46815147,0.00022929,2]
[313829649,1707747047215,-111.66942168,0.00022929,2]
[313829650,1707747047224,-500.0,0.00022929,2]
[313829651,1707747047233,-3101.18,0.00022929,2]
[313829652,1707747047243,-500.0,0.00022929,2]
[313829653,1707747047252,-500.0,0.00022929,2]
[313829654,1707747047261,-1242.77,0.00022929,2]
[313829655,1707747047270,-500.0,0.00022929,2]
[313829656,1707747047279,-500.0,0.00022929,2]
[313829657,1707747047289,-2175.24,0.00022929,2]
[313829658,1707747047298,-930.4,0.00022929,2]
[313829659,1707747047307,-500.0,0.00022929,2]
[313829660,1707747047317,-500.0,0.00022929,2]
[313829661,1707747047326,-631.75,0.00022929,2]
[313829662,1707747047335,-436.62808659,0.00022929,2]
[313829663,1707747047396,-63.37191341,0.00022929,2]
[313829664,1707747047406,-500.0,0.00022929,2]
[313829665,1707747047417,-488.15362287,0.00022929,2]
[313829666,1707747047447,-119.98637713,0.00022929,2]
[313829667,1707747047456,-955.42576925,0.00022929,2]
[313829668,1707747047468,-2627.57423075,0.00022929,2]
[313829669,1707747047477,-500.0,0.00022929,2]
[313829670,1707747047486,-500.0,0.00022929,2]
[313829671,1707747047495,-500.0,0.00022929,2]
[313829672,1707747047505,-500.0,0.00022929,2]
[313829673,1707747047515,-1457.88,0.00022929,2]
[313829674,1707747047525,-92.36205112,0.00022929,2]
[313829675,1707747047719,-6.82052748,0.00022929,2]
[313829676,1707747047733,-255.09556396,0.00022929,2]
[313829677,1707747089998,500.0,0.00022399,2]
[313829678,1707747097379,1379.00123412,0.00022399,2]
[313829679,1707747098139,33527.26776417,0.00022399,2]
[313829680,1707747101758,155.0,0.00022399,2]
[313829681,1707747104913,155.0,0.00022399,2]
[313829682,1707747104999,363.59759485,0.00022399,2]
[313829683,1707747107482,155.0,0.00022399,2]
[313829684,1707747109579,155.0,0.00022399,2]
[313829685,1707747110465,162.65328233,0.00022399,2]
[313829686,1707747110779,155.0,0.00022399,2]
[313829687,1707747111132,2635.30215607,0.00022399,2]
[313829688,1707747111745,109.71729514,0.00022399,2]
[313829689,1707747200120,591.45114717,0.00022389,2]
[313829690,1707747206533,163.55,0.00019909,2]
[313829691,1707747207268,264.85781703,0.00022389,2]
[313829692,1707747223268,264.85781703,0.00022389,2]
[313829693,1707747226914,2795.51605946,0.00022389,2]
[313829694,1707747230168,375.82127149,0.00022389,2]
[313829695,1707747231591,526.65608122,0.00022389,2]
[313829696,1707747232380,1379.00123412,0.00022389,2]
[313829697,1707747233720,632.28030098,0.00022389,2]
[313829698,1707747234367,219.15468149,0.00022389,2]
[313829699,1707747235109,6473.53214918,0.00022389,2]
[313829700,1707747236594,402.67523113,0.00022389,2]
[313829701,1707747236929,402.75303572,0.00022389,2]
[313829702,1707747237591,155.0,0.00022389,2]
[313829703,1707747237980,155.0,0.00022389,2]
[313829704,1707747239075,4268.54998927,0.00022389,2]
[313829705,1707747239359,526.86270131,0.00022389,2]
[313829706,1707747240923,2812.34341129,0.00022389,2]
[313829707,1707747241268,155.0,0.00022389,2]
[313829708,1707747241483,293.08175408,0.00022389,2]
[313829709,1707747241894,626.32327301,0.00022389,2]
[313829710,1707747243692,155.0,0.00022389,2]
[313829711,1707747243806,625.90252472,0.0002229,2]
[313829712,1707747243914,945.52644508,0.00022389,2]
[313829713,1707747244691,24474.79110385,0.00022389,2]
[313829714,1707747245325,585.33944638,0.00022389,2]
[313829715,1707747245388,420.35560624,0.00022389,2]
[313829716,1707747246156,212.87694586,0.00022389,2]
[313829717,1707747246202,527.94521451,0.00022389,2]
[313829718,1707747248803,3045.88772392,0.00022389,2]
[313829719,1707747249031,545.87787865,0.00022388,2]
[313829720,1707747253469,162.65328233,0.00022389,2]
[313829721,1707747256680,163.10625564,0.00022389,2]
[313829722,1707747258307,55456.05792755,0.00022389,2]
[313829723,1707747260406,3644.9227114,0.00022389,2]
[313829724,1707747275472,200.0,0.00021849,2]
[313829725,1707747283682,229.57746302,0.00022389,2]
[313829726,1707747283990,155.0,0.00022389,2]
[313829727,1707747285110,1056.08448532,0.00022389,2]
[313829728,1707747301826,300.0,0.00022389,2]
[313829729,1707747302138,500.0,0.0002184,2]
[313829730,1707747302279,150.0,0.00022389,2]
[313829731,1707747303452,402.75303572,0.00022389,2]
[313829732,1707747304913,170.8403877,0.00022389,2]
[313829733,1707747305390,573.8,0.00021918,2]
[313829734,1707747305470,365.7107022,0.00021717,2]
[313829735,1707747307014,359.74441829,0.00022389,2]
[313829736,1707747307050,167.96903937,0.00022389,2]
[313829737,1707747307084,236.04048549,0.00022389,2]
[313829738,1707747307315,156.73583918,0.00022389,2]
[313829739,1707747309243,375.82127149,0.00022389,2]
[313829740,1707747309328,159.68615392,0.00022389,2]
[313829741,1707747309466,274.63919748,0.00022388,2]
[313829742,1707747311106,402.67523113,0.00022389,2]
[313829743,1707747311549,4268.54998927,0.00022389,2]
[313829744,1707747311585,155.0,0.00022389,2]
[313829745,1707747312231,632.28030098,0.00022389,2]
[313829746,1707747312365,364.44524763,0.00022389,2]
[313829747,1707747312767,157.35051429,0.00022389,2]
[313829748,1707747312983,172.30354092,0.00022389,2]
[313829749,1707747313299,155.8188905,0.00022389,2]
[313829750,1707747313942,420.35560624,0.00022387,2]
[313829751,1707747314661,315.93907995,0.00022387,2]
[313829752,1707747315199,355.52151911,0.00022389,2]
[313829753,1707747315846,155.0,0.00020561,2]
[313829754,1707747316149,162.47006204,0.00020561,2]
[313829755,1707747317300,511.47259812,0.00022389,2]
[313829756,1707747317329,623.15304015,0.00022389,2]
[313829757,1707747317766,155.0,0.00022389,2]
[313829758,1707747317906,155.0,0.00022389,2]
[313829759,1707747318489,155.0,0.00022389,2]
[313829760,1707747320514,945.52644508,0.00022389,2]
[313829761,1707747326016,475.81552691,0.00022389,2]
[313829762,1707747326999,311.71234192,0.00022389,2]
[313829763,1707747327106,163.10625564,0.00022389,2]
[313829764,1707747327319,3045.88772392,0.00022389,2]
[313829765,1707747329143,198.01264144,0.00022389,2]
[313829766,1707747329748,239.82961219,0.00022389,2]
[313829767,1707747330945,339.47556128,0.00022389,2]
[313829768,1707747331841,158.62286868,0.00020561,2]
[313829769,1707747332990,3644.9227114,0.00022389,2]
[313829770,1707747333917,237.24,0.00021829,2]
[313829771,1707747340292,155.0,0.00022389,2]
[313829772,1707747342475,155.0,0.00022389,2]
[313829773,1707747343726,155.0,0.00022389,2]
[313829774,1707747344327,173.44,0.00021986,2]
[313829775,1707747344536,173.44,0.00022046,2]
[313829776,1707747344804,55456.05792755,0.00022389,2]
[313829777,1707747344957,301.97,0.00021823,2]
[313829778,1707747345006,173.44,0.00022107,2]
[313829779,1707747345182,173.44,0.00022167,2]
[313829780,1707747345401,173.44,0.00022227,2]
[313829781,1707747345835,173.44,0.00022288,2]
[313829782,1707747345965,250.0,0.00021918,2]
[313829783,1707747346250,173.44,0.00022348,2]
[313829784,1707747347066,199.85801016,0.00022389,2]
[313829785,1707747355894,162.40010045,0.00022389,2]
[313829786,1707747358470,155.0,0.00022389,2]
[313829787,1707747368352,282.74222937,0.00022389,2]
[313829788,1707747371005,199.85801016,0.00022389,2]
[313829789,1707747374652,189.91,0.00021789,2]
[313829790,1707747389013,155.0,0.00022389,2]
[313829791,1707747389607,402.67523113,0.00022389,2]
[313829792,1707747392084,5000.0,0.0002239,2]
[313829793,1707747392592,420.35560624,0.00022389,2]
[313829794,1707747392860,364.44524763,0.00022389,2]
[313829795,1707747395102,200.6536,0.0002229,2]
[313829796,1707747401032,200.0,0.00021783,2]
[313829797,1707747405018,155.0,0.00022389,2]
[313829798,1707747411448,339.47556128,0.00022389,2]
[313829799,1707747419792,612.608144,0.00022389,2]
[313829800,1707747422222,2360.82534125,0.00022389,4]
[313829801,1707747423839,155.0,0.00022389,2]
[313829802,1707747426684,686.27500614,0.00022389,2]
[313829803,1707747429009,155.0,0.00022389,2]
[313829804,1707747431314,55456.05792755,0.00022389,2]
[313829805,1707747432747,210.17532142,0.00022389,2]
[313829806,1707747434292,311.79750185,0.00022389,2]
[313829807,1707747438739,270.95,0.00021779,2]
[313829808,1707747451022,155.0,0.00022389,2]
[313829809,1707747454317,1350.0,0.00022,10]
[313829810,1707747470171,402.67523113,0.00022389,2]
[313829811,1707747471079,155.0,0.00022389,2]
[313829812,1707747471372,364.44524763,0.00022389,2]
[313829813,1707747482099,150.0,0.00022389,2]
[313829814,1707747489061,224.29005082,0.00022,2]
[313829815,1707747499062,177.24,0.00021994,2]
[313829816,1707747519830,55456.05792755,0.00022389,2]
[313829817,1707747557857,250.0,0.0002199,2]
[313829818,1707747560478,153.30214944,0.0002199,2]
[313829819,1707747576729,33527.26776417,0.00022389,2]
[313829820,1707747598333,55456.05792755,0.00022389,2]
[313829821,1707747604777,2000.0,0.0002239,2]
[313829822,1707747607727,200.0,0.0002239,2]
[313829823,1707747617856,182.32,0.00021774,2]
[313829824,1707747629990,175.58407819,0.00022389,2]
[313829825,1707747650761,250.0,0.00021775,2]
[313829826,1707747670844,55456.05792755,0.00022389,2]
[313829827,1707747678914,163.55,0.00019856,2]
[313829828,1707747683163,1180.91311707,0.00022389,2]
[313829829,1707747738850,1051.09278961,0.00022389,2]
[313829830,1707747753376,55456.05792755,0.00022389,2]
[313829831,1707747755299,9495.79911543,0.00022389,2]
[313829832,1707747756668,151.0,0.00027977,120]
[313829833,1707747788157,154.0,0.00022205,2]
[313829834,1707747790380,218.0,0.00022205,2]
[313829835,1707747803880,432.63,0.00021766,2]
[313829836,1707747816763,237.24,0.00021765,2]
[313829837,1707747827905,55456.05792755,0.00022389,2]
[313829838,1707747830804,202.0,0.00022262,2]
[313829839,1707747837205,500.0,0.00021734,2]
[313829840,1707747844143,205.0,0.00021998,2]
[313829841,1707747894599,170.23,0.00017379,2]
[313829842,1707747899139,225.79,0.00021723,2]
[313829843,1707747900368,55456.05792755,0.00022389,2]
[313829844,1707747911349,1051.09278961,0.00022389,2]
[313829845,1707747914267,154.73987692,0.0002229,2]
[313829846,1707747919245,1000.0,0.00021721,2]
[313829847,1707747919275,154.73987679,0.00022316,2]
[313829848,1707747919611,500.0,0.00022389,2]
[313829849,1707747924246,154.73987679,0.00022341,2]
[313829850,1707747928880,175.15636982,0.00022389,2]
[313829851,1707747929225,154.73987679,0.00022367,2]
[313829852,1707747938118,1207.66992308,0.00022389,2]
[313829853,1707747949675,150.31,0.00021898,2]
[313829854,1707747950114,150.31,0.00021979,2]
[313829855,1707747950185,150.31,0.00022061,2]
[313829856,1707747950350,150.31,0.00022142,2]
[313829857,1707747950552,150.31,0.00022224,2]
[313829858,1707747950783,150.31,0.00022305,2]
[313829859,1707747951031,150.31,0.00022387,2]
[313829860,1707747958947,282.74222937,0.00022389,2]
[313829861,1707747960070,1843.17205776,0.00022389,2]
[313829862,1707747962787,200.0,0.00021712,2]
[313829863,1707747974225,1171.59945719,0.00022389,2]
[313829864,1707747983966,250.0,0.00021918,2]
[313829865,1707747998627,500.0,0.00022389,2]
[313829866,1707748010740,6473.53214918,0.00022389,2]
[313829867,1707748013374,175.15636982,0.00022389,2]
[313829868,1707748016134,366.06042699,0.00022389,2]
[313829869,1707748016635,5546.12964389,0.00022389,2]
[313829870,1707748018489,626.32327301,0.00022389,2]
[313829871,1707748021481,1262.8216172,0.00022389,2]
[313829872,1707748026687,527.94521451,0.00022389,2]
[313829873,1707748031250,10211.48351872,0.00022389,2]
[313829874,1707748034216,155.0,0.00022389,2]
[313829875,1707748036999,945.52644508,0.00022389,2]
[313829878,1707748047741,400.0,0.000223,8]
[313829879,1707748056545,155.0,0.00022389,2]
[313829880,1707748065785,155.0,0.00022389,2]
[313829881,1707748066782,221.60779423,0.00022389,2]
[313829882,1707748066987,1090.12585133,0.00022389,2]
[313829883,1707748068193,1408.55099016,0.00022389,2]
[313829884,1707748068547,1240.26210235,0.00022389,2]
[313829885,1707748070716,155.0,0.00022389,2]
[313829886,1707748072083,5473.18204554,0.00022389,2]
[313829887,1707748075736,4594.83096539,0.00022389,2]
[313829888,1707748078372,212.87694586,0.00022389,2]
[313829889,1707748078870,155.0,0.00022389,2]
[313829890,1707748079561,155.0,0.00022389,2]
[313829891,1707748083361,24474.79110385,0.00022389,2]
[313829892,1707748083620,248.02594869,0.00022389,2]
[313829894,1707748094055,73196.20372671,0.00022389,2]
[313829895,1707748108727,155.0,0.00022389,2]
[313829896,1707748109758,280.83602721,0.00022389,2]
[313829903,1707748126763,250.0,0.00021649,2]
[313829904,1707748133209,354.36,0.0002185,2]
[313829905,1707748136602,166.25,0.00019735,2]
[313829913,1707748170133,248.02594869,0.00022389,2]
[313829918,1707748198687,150.1914026,0.00022367,2]
[313829941,1707748235242,-9480.0,0.0002239,2]
[313829942,1707748235323,-1015.73451253,0.0002239,2]
[313829943,1707748235336,-87.3757224,0.0002239,2]
[313829944,1707748235345,-962.7890426,0.0002239,2]
[313829945,1707748235362,-622.67114989,0.0002239,2]
[313829946,1707748235395,-5605.32851942,0.0002239,2]
[313829947,1707748235406,-635.15728777,0.0002239,2]
[313829948,1707748235416,-154.73987679,0.00022392,2]
[313829949,1707748235425,-900.0,0.000224,8]
[313829950,1707748235434,-154.73987679,0.00022418,2]
[313829951,1707748235443,-165.82,0.00022438,2]
[313829952,1707748235452,-154.73987679,0.00022443,2]
[313829953,1707748235462,-150.31,0.00022468,2]
[313829954,1707748235471,-154.73987679,0.00022469,2]
[313829955,1707748235483,-154.73987679,0.00022494,2]
[313829956,1707748235492,-1795.11,0.00022494,2]
[313829957,1707748235502,-1300.0,0.000225,8]
[313829958,1707748235511,-283.52909421,0.00022518,2]
[313829959,1707748235521,-2601.73961409,0.00022518,2]
[313829967,1707748235643,-5312.40787405,0.00022518,2]
[313829970,1707748235662,-340.1393542,0.00022518,2]
[313829972,1707748235673,-312.37220644,0.00022518,2]
[313829987,1707748238140,-2674.72095122,0.00022518,2]
[313829988,1707748238150,-154.73987679,0.0002252,2]
[313829989,1707748238159,-154.73987679,0.00022546,2]
[313829990,1707748238169,-150.31,0.0002255,2]
[313829991,1707748238178,-154.73987679,0.00022571,2]
[313829992,1707748238188,-623.53115637,0.00022582,2]
[313829993,1707748238200,-524.68429666,0.00022582,2]
[313829994,1707748238209,-1044.35236561,0.00022588,2]
[313829995,1707748238219,-4195.16,0.00022589,2]
[313829996,1707748238228,-499.99,0.00022589,2]
[313829997,1707748238237,-1003.6,0.00022589,2]
[313829998,1707748238247,-154.73987679,0.00022597,2]
[313829999,1707748238256,-1800.0,0.000226,8]